fUST/lending_fUST_20250912
["ID","MTS","AMOUNT","RATE_DAILY","PERIOD"]
[385036428,1757650247740,-154.057419,0.0001614,2]
[385036430,1757650247750,-154.057419,0.0001614,2]
[385036432,1757650247759,-154.057419,0.0001614,2]
[385036434,1757650247768,-151.0,0.0001614,2]
[385036436,1757650247779,-151.0,0.0001614,2]
[385036438,1757650247788,-151.0,0.0001614,2]
[385036440,1757650247797,-151.0,0.0001614,2]
[385036442,1757650247806,-151.0,0.0001614,2]
[385036444,1757650247815,-151.0,0.0001614,2]
[385036446,1757650247824,-151.0,0.0001614,2]
[385036448,1757650247833,-151.0,0.0001614,2]
[385036450,1757650247842,-154.511059,0.00016145,2]
[385036452,1757650247851,-151.588811,0.00016145,2]
[385036454,1757650247861,-504.53485017,0.00016145,2]
[385036465,1757650247955,-380.0,0.00016145,2]
[385036467,1757650247964,-380.0,0.00016145,2]
[385036469,1757650247974,-380.0,0.00016145,2]
[385036471,1757650247983,-380.0,0.00016145,2]
[385036473,1757650247993,-480.0,0.00016145,2]
[385036475,1757650248002,-480.0,0.00016145,2]
[385036477,1757650248012,-305.77958319,0.00016145,2]
[385036479,1757650248021,-480.0,0.00016145,2]
[385036481,1757650248031,-480.0,0.00016145,2]
[385036483,1757650248041,-480.0,0.00016145,2]
[385036485,1757650248050,-153.932158,0.00016145,2]
[385036487,1757650248060,-480.0,0.00016145,2]
[385036489,1757650248069,-152.029443,0.00016145,2]
[385036491,1757650248079,-151.0,0.00016145,2]
[385036493,1757650248089,-151.0,0.00016145,2]
[385036495,1757650248099,-480.0,0.00016145,2]
[385036497,1757650248108,-151.0,0.00016145,2]
[385036499,1757650248119,-480.0,0.00016145,2]
[385036501,1757650248129,-151.0,0.00016145,2]
[385036503,1757650248138,-151.0,0.00016145,2]
[385036505,1757650248147,-210.305244,0.00016145,2]
[385036507,1757650248156,-3000.0,0.0001615,2]
[385036509,1757650248166,-3000.0,0.0001616,2]
[385036511,1757650248177,-3000.0,0.0001617,2]
[385036513,1757650248187,-3000.0,0.0001618,2]
[385036515,1757650248196,-3000.0,0.0001619,2]
[385036517,1757650248205,-3000.0,0.000162,2]
[385036519,1757650248215,-3000.0,0.0001621,2]
[385036521,1757650248224,-3000.0,0.0001622,2]
[385036523,1757650248233,-3000.0,0.0001623,2]
[385036525,1757650248243,-3000.0,0.0001624,2]
[385036527,1757650248252,-3000.0,0.0001625,2]
[385036529,1757650248261,-3000.0,0.0001626,2]
[385036531,1757650248271,-1500.0,0.00016266,2]
[385036533,1757650248280,-3000.0,0.0001627,2]
[385036535,1757650248289,-3000.0,0.0001628,2]
[385036537,1757650248300,-3000.0,0.0001629,2]
[385036540,1757650248309,-3000.0,0.000163,2]
[385036542,1757650248319,-3000.0,0.0001631,2]
[385036544,1757650248329,-649.79,0.00016318,2]
[385036546,1757650248338,-480.0,0.00016318,2]
[385036548,1757650248348,-480.0,0.00016318,2]
[385036550,1757650248360,-480.0,0.00016318,2]
[385036551,1757650248369,-480.0,0.00016318,2]
[385036554,1757650248378,-480.0,0.00016318,2]
[385036556,1757650248388,-480.0,0.00016319,2]
[385036558,1757650248399,-480.0,0.00016319,2]
[385036559,1757650248408,-480.0,0.00016319,2]
[385036562,1757650248418,-480.0,0.00016319,2]
[385036563,1757650248428,-1443.18,0.00016319,2]
[385036565,1757650248442,-459.71,0.00016319,2]
[385036567,1757650248452,-3000.0,0.0001632,2]
[385036570,1757650248461,-837.24,0.0001632,2]
[385036571,1757650248471,-480.0,0.0001632,2]
[385036573,1757650248481,-480.0,0.0001632,2]
[385036576,1757650248490,-2941.89,0.0001632,2]
[385036577,1757650248499,-3000.0,0.0001633,2]
[385036580,1757650248509,-3000.0,0.0001634,2]
[385036582,1757650248519,-3000.0,0.0001635,2]
[385036584,1757650248528,-3000.0,0.0001636,2]
[385036586,1757650248538,-3250.289095,0.0001637,2]
[385036588,1757650248547,-151.0,0.000164,2]
[385036589,1757650248557,-329.56411804,0.00016419,2]
[385036591,1757650248566,-480.0,0.00016419,2]
[385036594,1757650248576,-480.0,0.00016419,2]
[385036596,1757650248585,-480.0,0.00016419,2]
[385036597,1757650248594,-615.20517676,0.00016419,2]
[385036600,1757650248604,-480.0,0.00016419,2]
[385036602,1757650248613,-480.0,0.00016419,2]
[385036604,1757650248623,-480.0,0.00016419,2]
[385036606,1757650248632,-500.0,0.00016438,2]
[385036608,1757650248642,-500.0,0.00016438,2]
[385036609,1757650248651,-500.0,0.00016438,2]
[385036612,1757650248660,-500.0,0.00016438,2]
[385036613,1757650248670,-500.0,0.00016438,2]
[385036616,1757650248679,-500.0,0.00016438,2]
[385036618,1757650248688,-500.0,0.00016438,2]
[385036619,1757650248698,-500.0,0.00016438,2]
[385036622,1757650248707,-500.0,0.00016438,2]
[385036624,1757650248717,-360.0,0.0001656,2]
[385036626,1757650248727,-649.79,0.00016592,2]
[385036628,1757650248736,-480.0,0.00016592,2]
[385036630,1757650248745,-480.0,0.00016592,2]
[385036632,1757650248755,-480.0,0.00016592,2]
[385036634,1757650248764,-480.0,0.00016592,2]
[385036636,1757650248773,-480.0,0.00016592,2]
[385036638,1757650248783,-480.0,0.00016593,2]
[385036640,1757650248792,-480.0,0.00016593,2]
[385036642,1757650248801,-480.0,0.00016593,2]
[385036644,1757650248811,-1443.18,0.00016593,2]
[385036646,1757650248820,-837.24,0.00016594,2]
[385036647,1757650248830,-480.0,0.00016594,2]
[385036649,1757650248839,-480.0,0.00016594,2]
[385036651,1757650248849,-2941.89,0.00016594,2]
[385036653,1757650248858,-500.0,0.00016693,2]
[385036655,1757650248868,-296.00219998,0.00016693,2]
[385036657,1757650248877,-480.0,0.00016693,2]
[385036659,1757650248887,-480.0,0.00016693,2]
[385036661,1757650248896,-624.52985285,0.00016693,2]
[385036663,1757650248905,-480.0,0.00016693,2]
[385036665,1757650248915,-480.0,0.00016693,2]
[385036667,1757650248925,-2000.0,0.00016814,2]
[385036669,1757650248934,-649.79,0.00016866,2]
[385036671,1757650248943,-480.0,0.00016866,2]
[385036673,1757650248952,-480.0,0.00016866,2]
[385036675,1757650248961,-480.0,0.00016866,2]
[385036677,1757650248971,-505.86,0.00016866,2]
[385036679,1757650248980,-480.0,0.00016866,2]
[385036681,1757650248989,-480.0,0.00016867,2]
[385036683,1757650248999,-480.0,0.00016867,2]
[385036686,1757650249008,-480.0,0.00016867,2]
[385036688,1757650249018,-1068.85952478,0.00016867,2]
[385037167,1757650393801,151.0,0.00027397,120]
[385037170,1757650560935,8936.83,0.00028376,60]
[385037171,1757650650432,444.55464445,0.00013926,2]
[385037172,1757650732439,-235.67679418,0.00014024,2]
[385037174,1757650831486,7285.9995318,0.00013051,2]
[385037176,1757650932695,388.98531392,0.00013926,2]
[385037177,1757650947930,474.87818,0.00013699,2]
[385037180,1757651015508,7244.97020488,0.00014,2]
[385037181,1757651096492,1018.35709241,0.00028442,60]
[385037216,1757651212964,340.36214968,0.00013925,2]
[385037249,1757651292466,752.10303395,0.000135,2]
[385037290,1757651423881,2393.82185788,0.00013926,2]
[385037358,1757651438210,-300.0,0.00014023,2]
[385037360,1757651438220,-1200.0,0.00014023,2]
[385037362,1757651438229,-340.8802281,0.00014023,2]
[385037364,1757651438238,-500.0,0.00014023,2]
[385037366,1757651438247,-314.84932216,0.00014023,2]
[385037368,1757651438256,-2000.0,0.00014024,2]
[385037370,1757651438264,-2000.0,0.00014024,2]
[385037372,1757651438274,-2000.0,0.00014024,2]
[385037374,1757651438283,-94.27024974,0.00014024,2]
[385037379,1757651438319,-1666.92875026,0.00014024,2]
[385037381,1757651438330,-480.0,0.00014024,2]
[385037383,1757651438339,-480.0,0.00014024,2]
[385037397,1757651438460,-480.0,0.00014024,2]
[385037399,1757651438470,-480.0,0.00014024,2]
[385037401,1757651438479,-480.0,0.00014024,2]
[385037403,1757651438488,-490.86143636,0.00014024,2]
[385037405,1757651438498,-5135.52114961,0.00014024,2]
[385037407,1757651438507,-487.41515589,0.00014024,2]
[385037409,1757651438516,-171.95629139,0.00014024,2]
[385037411,1757651438525,-193.64975211,0.00014024,2]
[385037413,1757651438534,-47473.36541626,0.00014024,2]
[385037415,1757651438543,-480.0,0.00014025,2]
[385037417,1757651438553,-485.23082794,0.00014025,2]
[385037419,1757651438562,-480.0,0.00014025,2]
[385037421,1757651438571,-480.0,0.00014025,2]
[385037423,1757651438582,-480.0,0.00014025,2]
[385037425,1757651438591,-416.56221726,0.00014025,2]
[385037427,1757651438600,-480.0,0.00014025,2]
[385037429,1757651438609,-480.0,0.00014025,2]
[385037431,1757651438618,-480.0,0.00014025,2]
[385037433,1757651438627,-480.0,0.00014025,2]
[385037435,1757651438636,-725.44,0.00014025,2]
[385037437,1757651438645,-172.15728703,0.00014025,2]
[385037439,1757651438655,-480.0,0.00014025,2]
[385037441,1757651438665,-480.0,0.00014025,2]
[385037443,1757651438675,-480.0,0.00014025,2]
[385037445,1757651438685,-480.0,0.00014025,2]
[385037447,1757651438695,-480.0,0.00014025,2]
[385037449,1757651438704,-480.0,0.00014025,2]
[385037451,1757651438713,-480.0,0.00014025,2]
[385037453,1757651438722,-480.0,0.00014025,2]
[385037455,1757651438732,-480.0,0.00014025,2]
[385037457,1757651438741,-480.0,0.00014025,2]
[385037459,1757651438750,-480.0,0.00014025,2]
[385037462,1757651438764,-480.0,0.00014025,2]
[385037464,1757651438774,-480.0,0.00014025,2]
[385037466,1757651438783,-480.0,0.00014025,2]
[385037468,1757651438792,-480.0,0.00014025,2]
[385037469,1757651438802,-480.0,0.00014025,2]
[385037472,1757651438811,-480.0,0.00014025,2]
[385037473,1757651438820,-480.0,0.00014025,2]
[385037475,1757651438830,-480.0,0.00014025,2]
[385037477,1757651438840,-480.0,0.00014025,2]
[385037479,1757651438850,-505.92431692,0.00014025,2]
[385037481,1757651438859,-480.0,0.00014025,2]
[385037483,1757651438869,-480.0,0.00014025,2]
[385037486,1757651438879,-503.91,0.00014025,2]
[385037488,1757651438889,-480.0,0.00014025,2]
[385037490,1757651438899,-480.0,0.00014025,2]
[385037492,1757651438908,-480.0,0.00014025,2]
[385037494,1757651438917,-480.0,0.00014025,2]
[385037496,1757651438927,-480.0,0.00014025,2]
[385037498,1757651438936,-480.0,0.00014025,2]
[385037500,1757651438946,-480.0,0.00014025,2]
[385037502,1757651438956,-480.0,0.00014025,2]
[385037504,1757651438966,-480.0,0.00014025,2]
[385037506,1757651438975,-481.87174669,0.00014025,2]
[385037508,1757651438985,-480.0,0.00014025,2]
[385037510,1757651438994,-480.0,0.00014025,2]
[385037512,1757651439003,-488.53126977,0.00014025,2]
[385037514,1757651439013,-480.0,0.00014025,2]
[385037516,1757651439023,-480.0,0.00014025,2]
[385037518,1757651439033,-480.0,0.00014025,2]
[385037520,1757651439042,-483.17770178,0.00014025,2]
[385037522,1757651439051,-483.84924069,0.00014025,2]
[385037524,1757651439060,-480.0,0.00014025,2]
[385037526,1757651439069,-480.0,0.00014025,2]
[385037528,1757651439080,-480.0,0.00014025,2]
[385037530,1757651439089,-480.0,0.00014025,2]
[385037532,1757651439098,-480.0,0.00014025,2]
[385037534,1757651439107,-483.86078602,0.00014025,2]
[385037536,1757651439116,-480.0,0.00014025,2]
[385037538,1757651439125,-480.0,0.00014025,2]
[385037540,1757651439134,-485.2206668,0.00014025,2]
[385037542,1757651439143,-480.0,0.00014025,2]
[385037544,1757651439152,-480.0,0.00014025,2]
[385037546,1757651439161,-480.0,0.00014025,2]
[385037548,1757651439170,-1548.88,0.00014025,2]
[385037550,1757651439180,-486.32349585,0.00014025,2]
[385037552,1757651439189,-485.04289125,0.00014025,2]
[385037554,1757651439199,-488.5618906,0.00014025,2]
[385037556,1757651439208,-492.54342896,0.00014025,2]
[385037558,1757651439217,-486.71256684,0.00014025,2]
[385037560,1757651439227,-482.56029268,0.00014025,2]
[385037562,1757651439236,-272.38772672,0.00014025,2]
[385037564,1757651439245,-490.39644181,0.00014025,2]
[385037566,1757651439254,-480.0,0.00014025,2]
[385037568,1757651439263,-480.0,0.00014025,2]
[385037570,1757651439271,-480.0,0.00014025,2]
[385037572,1757651439281,-480.0,0.00014025,2]
[385037574,1757651439290,-480.0,0.00014025,2]
[385037576,1757651439299,-485.54378534,0.00014025,2]
[385037578,1757651439308,-480.0,0.00014025,2]
[385037580,1757651439317,-480.0,0.00014025,2]
[385037582,1757651439327,-480.0,0.00014025,2]
[385037584,1757651439337,-480.0,0.00014025,2]
[385037586,1757651439346,-480.0,0.00014025,2]
[385037588,1757651439355,-580.64045462,0.00014025,2]
[385037590,1757651439364,-495.81771429,0.00014025,2]
[385037592,1757651439373,-480.0,0.00014025,2]
[385037594,1757651439382,-549.77072652,0.00014025,2]
[385037596,1757651439392,-480.0,0.00014025,2]
[385037598,1757651439402,-480.0,0.00014025,2]
[385037600,1757651439412,-480.0,0.00014025,2]
[385037602,1757651439421,-480.0,0.00014026,2]
[385037605,1757651439430,-480.0,0.00014026,2]
[385037606,1757651439439,-484.67587361,0.00014026,2]
[385037609,1757651439448,-480.0,0.00014026,2]
[385037610,1757651439457,-486.86365684,0.00014026,2]
[385037612,1757651439467,-480.0,0.00014026,2]
[385037614,1757651439476,-480.0,0.00014026,2]
[385037617,1757651439486,-480.0,0.00014026,2]
[385037619,1757651439495,-482.77596874,0.00014026,2]
[385037621,1757651439504,-485.51451885,0.00014026,2]
[385037623,1757651439513,-484.13609026,0.00014026,2]
[385037625,1757651439523,-480.0,0.00014026,2]
[385037627,1757651439532,-483.01800159,0.00014026,2]
[385037629,1757651439541,-484.86108773,0.00014026,2]
[385037630,1757651439550,-482.22297251,0.00014026,2]
[385037632,1757651439559,-483.46028147,0.00014026,2]
[385037634,1757651439568,-482.77036129,0.00014026,2]
[385037636,1757651439577,-495.28999692,0.00014026,2]
[385037638,1757651439587,-488.79934972,0.00014026,2]
[385037640,1757651439596,-480.0,0.00014026,2]
[385037642,1757651439606,-488.66203036,0.00014026,2]
[385037644,1757651439615,-494.12786555,0.00014026,2]
[385037646,1757651439624,-482.66324529,0.00014026,2]
[385037648,1757651439633,-484.37777663,0.00014026,2]
[385037650,1757651439642,-484.88734171,0.00014026,2]
[385037652,1757651439652,-486.73967394,0.00014026,2]
[385037654,1757651439662,-487.53155803,0.00014026,2]
[385037656,1757651439671,-486.3511237,0.00014026,2]
[385037658,1757651439681,-484.07400614,0.00014026,2]
[385037660,1757651439691,-480.0,0.00014026,2]
[385037663,1757651439701,-233.85881518,0.00014026,2]
[385037666,1757651439710,-480.0,0.00014026,2]
[385037668,1757651439719,-482.45430888,0.00014026,2]
[385037670,1757651439728,-490.32040738,0.00014026,2]
[385037672,1757651439737,-482.52956425,0.00014026,2]
[385037674,1757651439746,-482.59655625,0.00014026,2]
[385037676,1757651439759,-488.10389265,0.00014026,2]
[385037678,1757651439768,-494.77565794,0.00014026,2]
[385037680,1757651439777,-486.98357216,0.00014026,2]
[385037682,1757651439786,-496.87292785,0.00014026,2]
[385037684,1757651439795,-480.0,0.00014026,2]
[385037686,1757651439805,-480.0,0.00014026,2]
[385037688,1757651439814,-263.33274518,0.00014026,2]
[385037690,1757651439824,-559.49320939,0.00014026,2]
[385037692,1757651439835,-486.26986262,0.00014026,2]
[385037694,1757651439844,-244.42657025,0.00014026,2]
[385037696,1757651439853,-480.0,0.00014026,2]
[385037698,1757651439862,-482.15777201,0.00014026,2]
[385037700,1757651439871,-480.0,0.00014026,2]
[385037702,1757651439880,-489.78538899,0.00014026,2]
[385037704,1757651439890,-480.0,0.00014026,2]
[385037706,1757651439900,-480.0,0.00014026,2]
[385037708,1757651439909,-480.0,0.00014026,2]
[385037710,1757651439918,-1006.95736075,0.00014026,2]
[385037712,1757651439928,-480.0,0.00014026,2]
[385037714,1757651439937,-480.0,0.00014026,2]
[385037716,1757651439947,-484.29398583,0.00014026,2]
[385037718,1757651439956,-480.0,0.00014026,2]
[385037720,1757651439965,-480.0,0.00014026,2]
[385037722,1757651439975,-500.0,0.00014026,2]
[385037724,1757651439984,-500.0,0.00014026,2]
[385037726,1757651439993,-500.0,0.00014026,2]
[385037728,1757651440003,-480.0,0.00014026,2]
[385037730,1757651440013,-480.0,0.00014026,2]
[385037732,1757651440022,-483.18488262,0.00014026,2]
[385037734,1757651440032,-480.0,0.00014026,2]
[385037736,1757651440041,-480.0,0.00014026,2]
[385037738,1757651440050,-481.975807,0.00014026,2]
[385037740,1757651440059,-483.93847967,0.00014026,2]
[385037742,1757651440068,-480.0,0.00014026,2]
[385037744,1757651440078,-484.71778429,0.00014026,2]
[385037746,1757651440087,-480.0,0.00014026,2]
[385037748,1757651440096,-568.16866517,0.00014026,2]
[385037750,1757651440105,-480.0,0.00014026,2]
[385037752,1757651440114,-480.0,0.00014026,2]
[385037754,1757651440123,-157.0,0.00014026,2]
[385037756,1757651440133,-482.87666064,0.00014026,2]
[385037758,1757651440142,-483.17617044,0.00014026,2]
[385037760,1757651440152,-488.58350725,0.00014026,2]
[385037762,1757651440161,-500.0,0.00014026,2]
[385037764,1757651440170,-480.0,0.00014026,2]
[385037766,1757651440179,-157.0,0.00014026,2]
[385037768,1757651440188,-169.5141667,0.00014026,2]
[385037770,1757651440197,-480.0,0.00014026,2]
[385037772,1757651440206,-483.0085241,0.00014026,2]
[385037774,1757651440215,-837.24,0.00014026,2]
[385037776,1757651440224,-482.54335011,0.00014026,2]
[385037778,1757651440233,-483.83490386,0.00014026,2]
[385037780,1757651440241,-480.0,0.00014026,2]
[385037782,1757651440251,-480.0,0.00014026,2]
[385037784,1757651440260,-480.0,0.00014026,2]
[385037786,1757651440269,-480.0,0.00014026,2]
[385037788,1757651440278,-480.0,0.00014026,2]
[385037790,1757651440287,-480.0,0.00014026,2]
[385037792,1757651440296,-480.0,0.00014026,2]
[385037794,1757651440306,-480.0,0.00014026,2]
[385037796,1757651440315,-483.51871798,0.00014026,2]
[385037798,1757651440324,-481.70848603,0.00014026,2]
[385037800,1757651440335,-480.0,0.00014026,2]
[385037803,1757651440344,-480.0,0.00014026,2]
[385037804,1757651440353,-480.0,0.00014026,2]
[385037807,1757651440362,-480.0,0.00014026,2]
[385037808,1757651440371,-480.0,0.00014026,2]
[385037811,1757651440380,-481.78436156,0.00014026,2]
[385037813,1757651440390,-480.0,0.00014026,2]
[385037815,1757651440399,-481.88380941,0.00014026,2]
[385037817,1757651440408,-480.0,0.00014026,2]
[385037818,1757651440417,-480.0,0.00014026,2]
[385037821,1757651440427,-483.97618862,0.00014026,2]
[385037823,1757651440436,-485.87945724,0.00014026,2]
[385037825,1757651440445,-480.0,0.00014026,2]
[385037827,1757651440454,-483.18616691,0.00014026,2]
[385037829,1757651440463,-480.0,0.00014026,2]
[385037831,1757651440472,-481.77469763,0.00014026,2]
[385037832,1757651440481,-483.13379239,0.00014026,2]
[385037834,1757651440491,-480.0,0.00014026,2]
[385037837,1757651440500,-480.0,0.00014026,2]
[385037839,1757651440509,-483.175945,0.00014026,2]
[385037840,1757651440518,-484.72269936,0.00014026,2]
[385037842,1757651440527,-480.0,0.00014026,2]
[385037845,1757651440536,-480.0,0.00014026,2]
[385037847,1757651440546,-480.0,0.00014026,2]
[385037848,1757651440556,-480.0,0.00014026,2]
[385037850,1757651440565,-480.0,0.00014026,2]
[385037853,1757651440575,-482.26275234,0.00014026,2]
[385037855,1757651440585,-480.0,0.00014026,2]
[385037857,1757651440594,-3185.53,0.00014026,2]
[385037859,1757651440603,-480.0,0.00014026,2]
[385037861,1757651440613,-480.0,0.00014026,2]
[385037862,1757651440623,-480.0,0.00014026,2]
[385037864,1757651440633,-480.0,0.00014026,2]
[385037866,1757651440642,-480.0,0.00014026,2]
[385037868,1757651440651,-157.0,0.00014026,2]
[385037870,1757651440660,-480.0,0.00014026,2]
[385037872,1757651440670,-500.00638006,0.00014026,2]
[385037875,1757651440680,-370000.0,0.00014027,2]
[385037877,1757651440689,-155.0,0.00014124,2]
[385037879,1757651440698,-480.0,0.00014125,2]
[385037881,1757651440707,-480.0,0.00014125,2]
[385037882,1757651440716,-480.0,0.00014125,2]
[385037884,1757651440725,-487.62736065,0.00014125,2]
[385037886,1757651440734,-480.0,0.00014125,2]
[385037888,1757651440743,-480.0,0.00014125,2]
[385037890,1757651440755,-484.16973006,0.00014125,2]
[385037892,1757651440766,-480.0,0.00014125,2]
[385037894,1757651440774,-480.0,0.00014125,2]
[385037896,1757651440783,-502.30344361,0.00014125,2]
[385037898,1757651440794,-480.0,0.00014125,2]
[385037900,1757651440803,-480.0,0.00014125,2]
[385037902,1757651440812,-480.0,0.00014125,2]
[385037904,1757651440822,-480.0,0.00014125,2]
[385037906,1757651440832,-480.0,0.00014125,2]
[385037908,1757651440841,-480.0,0.00014125,2]
[385037910,1757651440850,-480.0,0.00014125,2]
[385037912,1757651440860,-485.4952814,0.00014125,2]
[385037914,1757651440869,-480.0,0.00014125,2]
[385037916,1757651440878,-157.0,0.00014125,2]
[385037918,1757651440887,-157.0,0.00014125,2]
[385037920,1757651440897,-480.0,0.00014125,2]
[385037922,1757651440907,-480.0,0.00014125,2]
[385037924,1757651440916,-480.0,0.00014125,2]
[385037926,1757651440925,-389.34820567,0.00014125,2]
[385037928,1757651440934,-480.0,0.00014125,2]
[385037930,1757651440943,-480.0,0.00014125,2]
[385037932,1757651440953,-480.0,0.00014125,2]
[385037934,1757651440962,-480.0,0.00014125,2]
[385037936,1757651440971,-480.0,0.00014125,2]
[385037937,1757651440982,-480.0,0.00014125,2]
[385037939,1757651440991,-480.0,0.00014125,2]
[385037941,1757651441000,-480.0,0.00014125,2]
[385037943,1757651441010,-480.0,0.00014125,2]
[385037945,1757651441019,-480.0,0.00014125,2]
[385037947,1757651441028,-480.0,0.00014125,2]
[385037949,1757651441038,-480.0,0.00014125,2]
[385037951,1757651441047,-480.0,0.00014125,2]
[385037953,1757651441056,-480.0,0.00014125,2]
[385037955,1757651441067,-480.0,0.00014127,2]
[385037957,1757651441075,-480.0,0.00014127,2]
[385037959,1757651441086,-436.52146158,0.00014127,2]
[385037961,1757651441095,-480.0,0.00014127,2]
[385037963,1757651441104,-590.17648891,0.00014127,2]
[385037965,1757651441114,-480.0,0.00014127,2]
[385037967,1757651441124,-480.0,0.00014127,2]
[385037979,1757651441229,-480.0,0.00014127,2]
[385037981,1757651441239,-480.0,0.00014127,2]
[385037983,1757651441250,-480.0,0.00014127,2]
[385037985,1757651441260,-480.0,0.00014127,2]
[385037987,1757651441270,-480.0,0.00014127,2]
[385037989,1757651441279,-480.0,0.00014127,2]
[385037991,1757651441288,-480.0,0.00014127,2]
[385037993,1757651441298,-480.0,0.00014127,2]
[385037995,1757651441307,-480.0,0.00014127,2]
[385037997,1757651441317,-480.0,0.00014127,2]
[385037999,1757651441326,-480.0,0.00014127,2]
[385038000,1757651441335,-480.0,0.00014127,2]
[385038002,1757651441345,-480.0,0.00014127,2]
[385038004,1757651441354,-480.0,0.00014127,2]
[385038006,1757651441363,-480.0,0.00014127,2]
[385038008,1757651441372,-480.0,0.00014127,2]
[385038010,1757651441381,-504.29214878,0.00014127,2]
[385038012,1757651441391,-496.53524269,0.00014127,2]
[385038014,1757651441400,-483.27881912,0.00014127,2]
[385038016,1757651441409,-482.07594619,0.00014127,2]
[385038018,1757651441419,-480.0,0.00014127,2]
[385038020,1757651441428,-480.0,0.00014127,2]
[385038022,1757651441437,-2393.82185784,0.00014225,2]
[385038024,1757651441447,-480.0,0.00014298,2]
[385038026,1757651441456,-480.0,0.00014298,2]
[385038028,1757651441465,-480.0,0.00014298,2]
[385038030,1757651441474,-480.0,0.00014298,2]
[385038032,1757651441483,-480.0,0.00014298,2]
[385038034,1757651441493,-480.0,0.00014299,2]
[385038036,1757651441502,-480.0,0.00014299,2]
[385038038,1757651441511,-480.0,0.00014299,2]
[385038040,1757651441520,-480.0,0.00014299,2]
[385038041,1757651441528,-480.0,0.00014299,2]
[385038043,1757651441541,-480.0,0.00014299,2]
[385038045,1757651441555,-480.0,0.00014299,2]
[385038047,1757651441565,-725.44,0.00014299,2]
[385038049,1757651441574,-480.0,0.00014299,2]
[385038051,1757651441584,-491.84307653,0.00014299,2]
[385038053,1757651441593,-486.2020097,0.00014299,2]
[385038055,1757651441602,-480.0,0.00014299,2]
[385038057,1757651441612,-265.94351585,0.00014299,2]
[385038059,1757651441621,-480.0,0.00014299,2]
[385038061,1757651441630,-267.58241398,0.00014299,2]
[385038063,1757651441639,-480.0,0.00014299,2]
[385038065,1757651441648,-480.0,0.00014299,2]
[385038067,1757651441658,-480.0,0.00014299,2]
[385038069,1757651441666,-480.0,0.00014299,2]
[385038071,1757651441682,-480.0,0.00014299,2]
[385038073,1757651441692,-480.0,0.00014299,2]
[385038075,1757651441701,-480.0,0.00014299,2]
[385038076,1757651441711,-485.22085515,0.00014299,2]
[385038078,1757651441720,-480.0,0.00014299,2]
[385038080,1757651441728,-480.0,0.00014299,2]
[385038082,1757651441737,-480.0,0.00014299,2]
[385038084,1757651441747,-480.0,0.00014299,2]
[385038086,1757651441760,-503.91,0.00014299,2]
[385038088,1757651441769,-480.0,0.00014299,2]
[385038090,1757651441778,-480.0,0.00014299,2]
[385038092,1757651441788,-480.0,0.00014299,2]
[385038094,1757651441797,-480.0,0.00014299,2]
[385038096,1757651441806,-480.0,0.00014299,2]
[385038098,1757651441816,-480.0,0.00014299,2]
[385038100,1757651441825,-480.0,0.00014299,2]
[385038102,1757651441837,-480.0,0.00014299,2]
[385038104,1757651441848,-480.0,0.00014299,2]